Cogmind - Beta 14 @@@ ROGUE MODE // 2024.08.20 @ 09:07:55 Player: Surreal Result: Destroyed by as-87567 with Assembled F-torch Performance ------------- Evolutions (1) 500 Regions Visited (4) 800 Robots Destroyed (4) 20 Value Destroyed (64) 64 Prototype IDs (0) 0 Alien Tech Used (0) 0 Bonus (200) 200 TOTAL SCORE: 1584 Bonus ------- Pacifist 200 Cogmind --------- Core Integrity 0/400 Matter 290/300 Energy 65/100 System Corruption 0% Temperature Cool (20) Movement Flying (40) Location -9/Mines Parts ------- > --- POWER (2) -------- (None) > --- PROPULSION (2) --- Flight Unit > --- UTILITY (3) ------ Improved Targeting Computer System Shield > --- WEAPON (2) ------- (None) > --- INVENTORY (5) ---- Small Storage Unit Peak State ------------ > --- POWER ------------ Light Ion Engine Improved Ion Engine > --- PROPULSION ------- Improved Hover Unit Improved Hover Unit > --- UTILITY ---------- Improved Targeting Computer Shield Generator System Shield > --- WEAPON ----------- EM Pulse Gun EM Pulse Gun > --- INVENTORY -------- Improved Hover Unit Improved Hover Unit Small Storage Unit Plasma Cutter [Rating: 16] Favorites ----------- Power Light Ion Engine Engine Light Ion Engine Propulsion Improved Hover Unit Wheel Compact Wheel Hover Unit Improved Hover Unit Flight Unit Flight Unit Utility Small Storage Unit Device Shield Generator Storage Small Storage Unit Processor Improved Targeting Computer Hackware System Shield Weapon EM Pulse Gun Energy Gun EM Pulse Gun Energy Cannon Light EM Pulse Cannon Special Weapon Plasma Cutter Build | -11 -10 -10 -9 -9 ------- Run | Yrd Mat Min Mat Min Slots Evolved 2 | . . . 2 . Power 1 | . . . 1 . Propulsion . | . . . . . Utility 1 | . . . 1 . Weapon . | . . . . . Parts Attached 26 | 6 6 2 7 5 Power 3 | 1 . . 2 . Engine 3 | 1 . . 2 . Core . | . . . . . Reactor . | . . . . . Propulsion 8 | 2 4 . 1 1 Treads . | . . . . . Leg . | . . . . . Wheel 2 | 2 . . . . Hover 4 | . 3 . 1 . Flight 2 | . 1 . . 1 Utility 9 | 1 2 2 4 . Device 3 | . 1 1 1 . Storage 3 | 1 1 . 1 . Processor 2 | . . . 2 . Hackware 1 | . . 1 . . Protection . | . . . . . Artifact . | . . . . . Weapon 6 | 2 . . . 4 Energy Gun 3 | 2 . . . 1 Energy Cannon 2 | . . . . 2 Ballistic Gun . | . . . . . Ballistic Cannon . | . . . . . Launcher . | . . . . . Special Weapon 1 | . . . . 1 Impact Weapon . | . . . . . Slashing Weapon . | . . . . . Piercing Weapon . | . . . . . Special Melee Weapon . | . . . . . Unidentified Prototypes . | . . . . . Parts Lost 7 | . . . 1 6 Power 1 | . . . . 1 Propulsion 3 | . . . 1 2 Utility . | . . . . . Weapon 3 | . . . . 3 Highest Loss Streak 6 | . . . 1 6 To Critical Strikes . | . . . . . Average Slot Usage (%) 89 | . 89 100 88 83 Engine 14 | . 14 14 15 11 Wheel 4 | . 17 . . . Hover 19 | . 9 28 22 20 Device 8 | . 4 15 7 11 Storage 4 | . 14 12 . . Processor 6 | . . . 10 11 Hackware 6 | . . . 11 11 Energy Gun 22 | . 28 28 22 13 Peak Build Rating 16 | 6 10 13 16 15 Average Rating 10 | 5 7 10 13 14 On Entrance 8 | . 6 10 12 14 Naked Turns . | . . . . . Heaviest Build 14 | 12 14 14 13 14 Greatest Support 26 | 26 26 14 14 14 Greatest Overweight (x) 1 | . . . . 1 Average Overweight (x) . | . . . . . Largest Inventory Capacity 8 | 8 8 8 8 5 Average Capacity 6 | 7 8 7 5 5 Most Carried 5 | 3 5 5 5 4 Average Carried 2 | . 2 3 3 2 Final Capacity 8 | 8 8 5 5 5 Final Carried 4 | 1 3 4 2 1 Class Distribution -------------------- 100% | Mutant Dominant Class ---------------- Mutant | -10/Materials Mutant | -10/Mines Mutant | -9/Materials Mutant | -9/Mines Resources | -11 -10 -10 -9 -9 ----------- Run | Yrd Mat Min Mat Min Matter Collected 435 | 254 . 66 55 60 Remotely . | . . . . . Salvage Created 107 | . . . 107 . Parts 12 | . . . 12 . Haulers Intercepted . | . . . . . Recyclers Shooed . | . . . . . Parts Field Recycled . | . . . . . Retrieved Matter . | . . . . . Parts Self-Destructed . | . . . . . Prevented . | . . . . . Kills | -11 -10 -10 -9 -9 ------- Run | Yrd Mat Min Mat Min Combat Hostiles Destroyed . | . . . . . Classes Destroyed 1 | . . . 1 . Watcher 4 | . . . 4 . Best Kill Streak 2 | . . . 2 . Combat Bots Only . | . . . . . Max Kills in Single Turn 1 | . . . 1 . Gunslinging . | . . . . . Exploded . | . . . . . Melee . | . . . . . Uniques/NPCs Destroyed . | . . . . . Combat | -11 -10 -10 -9 -9 -------- Run | Yrd Mat Min Mat Min Hostile Shots Fired 61 | . . . 12 49 Missed 17 | . . . 4 13 Damage Taken 775 | . . . 120 655 Core 402 | . . . 25 377 Absorbed by Shields . | . . . . . Core Remaining (%) 100 | 100 . 100 . . Volleys Fired 16 | . 1 . 13 2 Largest 2 | . 2 . 2 2 Hottest 96 | . 80 . 80 96 Shots Fired 31 | . 2 . 26 3 Gun 29 | . 2 . 26 1 Cannon 1 | . . . . 1 Launcher . | . . . . . Special 1 | . . . . 1 Kinetic . | . . . . . Thermal 1 | . . . . 1 Explosive . | . . . . . Electromagnetic 30 | . 2 . 26 2 Robot Hit Streak 4 | . . . 4 2 Robot Miss Streak 4 | . 2 . 4 2 Penetration Max . | . . . . . Secondary Targets 1 | . . . 1 . Max Gunslinging Chain 1 | . . . 1 . Shots Hit Robots 14 | . . . 13 1 Core Hits 4 | . . . 4 . Critical Kills . | . . . . . Critical Parts Destroyed . | . . . . . Critical Strikes 1 | . . . 1 . Corrupt 1 | . . . 1 . Melee Attacks . | . . . . . Impact . | . . . . . Slashing . | . . . . . Piercing . | . . . . . Sneak Attacks . | . . . . . Combat Hostiles . | . . . . . Follow-up Attacks . | . . . . . Damage Inflicted 285 | . . . 262 23 Guns 274 | . . . 262 12 Cannons . | . . . . . Explosions . | . . . . . Melee . | . . . . . Ramming . | . . . . . Kinetic . | . . . . . Thermal 11 | . . . . 11 Explosive . | . . . . . Electromagnetic 274 | . . . 262 12 Impact . | . . . . . Slashing . | . . . . . Piercing . | . . . . . Highest Corruption . | . . . . . Average Corruption . | . . . . . Corruption Purged . | . . . . . Corruption Blocked . | . . . . . Overload Shots . | . . . . . Overflow Damage . | . . . . . Projectiles . | . . . . . Explosions . | . . . . . Melee . | . . . . . Knockbacks . | . . . . . Impact . | . . . . . Kinetic . | . . . . . Secondary . | . . . . . Self-Inflicted Damage . | . . . . . Shots . | . . . . . Rammed . | . . . . . Targets Rammed . | . . . . . Kicked . | . . . . . Crushed . | . . . . . Highest Temperature 62 | . 24 . 62 38 Average Temperature 18 | . 14 . 19 17 Received Heat Transfer 215 | . . . 75 140 Siege Activations . | . . . . . Robots Corrupted . | . . . . . Combat Hostiles . | . . . . . Parts Fried 2 | . . . 2 . Impact Corruptions . | . . . . . Robots Melted . | . . . . . Combat Hostiles . | . . . . . Parts Melted . | . . . . . Heat Transferred 37 | . . . . 37 Parts Sabotaged . | . . . . . Parts Stolen . | . . . . . Parts Stripped . | . . . . . Power Chain Reactions . | . . . . . Alert | -11 -10 -10 -9 -9 ------- Run | Yrd Mat Min Mat Min Peak Influence 333 | . . . 333 129 Initial 129 | . . . . 129 Average 46 | . . . 94 125 Maximum Alert Level 1 | . . . 1 . Low Security (%) 90 | 100 100 100 72 100 Level 1 9 | . . . 27 . Level 2 . | . . . . . Level 3 . | . . . . . Level 4 . | . . . . . Level 5 . | . . . . . High Security . | . . . . . Max Security . | . . . . . Squads Dispatched 2 | . 1 . 1 . Investigation . | . . . . . Extermination . | . . . . . Reinforcement 2 | . 1 . 1 . Assault . | . . . . . Garrison . | . . . . . Intercept . | . . . . . Searches Triggered . | . . . . . Construction Impeded . | . . . . . Haulers Reinforced . | . . . . . Active Scanning Responses . | . . . . . Cargo Convoy Interrupts . | . . . . . Stealth | -11 -10 -10 -9 -9 --------- Run | Yrd Mat Min Mat Min Distress Signals 2 | . . . 2 . Communications Jammed . | . . . . . Distress Signals . | . . . . . Times Spotted 44 | . 1 . 18 25 Peak Tracking Total 20 | . 1 . 7 20 Tactical Retreats 4 | . . . 3 1 Traps | -11 -10 -10 -9 -9 ------- Run | Yrd Mat Min Mat Min Traps Triggered . | . . . . . Indirectly . | . . . . . Trap Hack Attempts . | . . . . . Triggered . | . . . . . Disarmed . | . . . . . Reprogrammed . | . . . . . Reused . | . . . . . Traps Extracted . | . . . . . Installed . | . . . . . Triggered . | . . . . . Machines | -11 -10 -10 -9 -9 ---------- Run | Yrd Mat Min Mat Min Machines Disabled . | . . . . . Max in Single Turn . | . . . . . Machines Repaired . | . . . . . Machines Dismantled . | . . . . . Machines Sabotaged . | . . . . . Overloaded Fab Kills . | . . . . . Hacking | -11 -10 -10 -9 -9 --------- Run | Yrd Mat Min Mat Min Machines Accessed 2 | . . 1 1 . Terminals 1 | . . . 1 . Fabricators . | . . . . . Repair Stations . | . . . . . Recycling Units . | . . . . . Scanalyzers . | . . . . . Garrison Access . | . . . . . Total Hacks 2 | . . 1 1 . Successful 1 | . . 1 . . Failed 1 | . . . 1 . Catastrophic 1 | . . . 1 . Database Lockouts . | . . . . . Manual . | . . . . . Terminals 1 | . . . 1 . Fabricators . | . . . . . Repair Stations . | . . . . . Recycling Units . | . . . . . Scanalyzers . | . . . . . Garrison Access . | . . . . . Terminal Hacks 1 | . . 1 . . Open Door 1 | . . 1 . . Fabricator Hacks . | . . . . . Repair Station Hacks . | . . . . . Recycling Unit Hacks . | . . . . . Scanalyzer . | . . . . . Garrison Access Hacks . | . . . . . Unauthorized Hacks . | . . . . . Terminals . | . . . . . Fabricators . | . . . . . Repair Stations . | . . . . . Recycling Units . | . . . . . Scanalyzers . | . . . . . Garrison Access . | . . . . . Data Cores Recovered . | . . . . . Used . | . . . . . Hacking Detections 1 | . . . 1 . Full Trace Events . | . . . . . Feedback Events . | . . . . . Feedback Blocked . | . . . . . Robot Schematics Acquired . | . . . . . Robots Built . | . . . . . Authchips . | . . . . . Time . | . . . . . Total Robot Build Rating . | . . . . . Part Schematics Acquired . | . . . . . Parts Built . | . . . . . Authchips . | . . . . . Time . | . . . . . Total Part Build Rating . | . . . . . Parts Repaired . | . . . . . Time . | . . . . . Parts Recycled . | . . . . . Recycled Matter . | . . . . . Retrieved Matter . | . . . . . Retrieved Components . | . . . . . Parts Scanalyzed . | . . . . . Part Schematics Acquired . | . . . . . Parts Damaged . | . . . . . Bothacking | -11 -10 -10 -9 -9 ------------ Run | Yrd Mat Min Mat Min Used RIF Installer . | . . . . . Robots Hacked . | . . . . . Non-combat . | . . . . . Combat . | . . . . . Robot Hacks Applied . | . . . . . Relay Couplers Released . | . . . . . Fabnet Peak Effective % . | . . . . . Robots Rewired . | . . . . . Allies Hacked . | . . . . . Hacks Repelled . | . . . . . Allies | -11 -10 -10 -9 -9 -------- Run | Yrd Mat Min Mat Min Total Allies . | . . . . . Largest Group . | . . . . . Highest-Rated Group . | . . . . . Highest-Rated Ally . | . . . . . Total Orders . | . . . . . Ally Attacks . | . . . . . Total Damage . | . . . . . Kills . | . . . . . Allies Corrupted . | . . . . . Allies Melted . | . . . . . Intel | -11 -10 -10 -9 -9 ------- Run | Yrd Mat Min Mat Min Robot Analysis Total . | . . . . . Derelict Logs Recovered 1 | . . . . 1 Drone Launches . | . . . . . Drone Recoveries . | . . . . . Exploration | -11 -10 -10 -9 -9 ------------- Run | Yrd Mat Min Mat Min Turns Passed 885 | 237 143 98 306 101 Spaces Moved 959 | 106 157 160 386 150 Core 4 | 3 . . . 1 Treads . | . . . . . Legs . | . . . . . Wheels 195 | 103 92 . . . Hover 760 | . 65 160 386 149 Flight . | . . . . . Fastest Speed 50 | 50 56 56 56 50 Average Speed 62 | 88 75 56 56 56 Slowest Speed 120 | 90 90 56 56 120 Overloaded Moves . | . . . . . Propulsion Burnouts . | . . . . . Robots Hopped . | . . . . . Cave-ins Triggered . | . . . . . Exploration Rate (%) 29 | 7 33 31 35 41 Regions Visited 4 Branch Regions 2 Pre-discovered Areas 1 | . . . . 1 Known Exits Taken . | . . . . . Unknown Exits Taken 4 | 1 1 1 1 . Scrap Searched 2 | . . 1 . 1 Spaces Dug . | . . . . . Terrain Destroyed . | . . . . . Melee . | . . . . . Projectile . | . . . . . AOE . | . . . . . Terrain Rammed . | . . . . . Walls Destroyed . | . . . . . Machines Disabled . | . . . . . Actions | -11 -10 -10 -9 -9 --------- Run | Yrd Mat Min Mat Min Total 1216 | 249 181 168 454 164 Wait 164 | 129 4 3 28 . Move 955 | 105 156 159 385 150 Hop . | . . . . . Pick Up 32 | 8 8 2 10 4 Fast Attach . | . . . . . Attach 26 | 6 6 2 7 5 Detach 4 | . 1 1 2 . Swap . | . . . . . Drop 19 | 1 5 1 9 3 Fire 16 | . 1 . 13 2 Melee . | . . . . . Ram . | . . . . . Kick . | . . . . . Crush . | . . . . . Escape Stasis . | . . . . . Rewire . | . . . . . Trap . | . . . . . Miscellaneous . | . . . . . Route ------- -11/Scrapyard -10/Materials -10/Mines -9/Materials (discovered 2 exits: [*Min x2]) -9/Mines (discovered 1 exit: [*Mat]) History --------- Turn | Location | Event 16 | -11/Scrapyard | Discovered new exit (range 15) 238 | -11/Scrapyard | Entered Materials 298 | -10/Materials | Discovered new exit (range 8) 315 | -10/Materials | Build established: Mutant 381 | -10/Materials | Entered Mines 455 | -10/Mines | Discovered new exit (range 6) 461 | -10/Mines | Met a Derelict who couldn't figure out how to use a Trap Extractor 479 | -10/Mines | Entered Materials 479 | -9/Materials | Evolved 2 slots: Power x1, Utility x1 483 | -9/Materials | Discovered new exit (range 7) 664 | -9/Materials | Discovered new exit (range 14) 785 | -9/Materials | Entered Mines 785 | -9/Mines | Discovered new exit (range 8) 812 | -9/Mines | Learned location of Storage (-7) 813 | -9/Mines | Found DCF Scrap (15 items) 840 | -9/Mines | Assembled infested the area 845 | -9/Mines | Assisted by a Guerilla fighting off Assembled 883 | -9/Mines | Core integrity fell below 50% 885 | -9/Mines | Core integrity fell below 20% 886 | -9/Mines | Destroyed by as-87567 with Assembled F-torch Last Messages --------------- 00852_ DX-VOG(h): "I'll hold them off! Go on ahead or try to find another way!" 00852_ HV Slug penetrates as-22883. 00852_ as-22883 suffers critical hit (Destroy). 00852_ as-22883 destroyed. 00878_ Lgt. EM Pulse Cannon destroyed. 00878_ as-68464 destroyed. 00878_ as-26540 destroyed. 00878_ EM Pulse Gun destroyed. 00879_ Imp. Hover Unit destroyed. Overweight warning: You are carrying more than your current propulsion can efficiently support, which slows movement; see status page ('s') or the top of the parts list for the specific mass vs. support values. 00880_ Imp. Ion Engine destroyed. 00880_ S-10 Pest destroyed. 00881_ Imp. Hover Unit destroyed. 00883_ Plasma Cutter destroyed. 00884_ Sensor Array severed. Map ----- +----------------------------------------------------+ | ?????????????????????????????????????????????????? | | ?????????????????????????????????????????????????? | | ?????????????????????????????????????????????????? | | ??????????????????????????????????################ | | ????????????????????????##????????#=** | | ????????????????????????# ???????#[[!* | | ???????????????????????## ???????#*%######### | | ???????????????????????# ???????#]!#??????## | | ????????????????????##### #??????#=!#?????## | | ???????????????????## #?????# =#???### """ | | ???????????????????# ###### #??## """ | | ????????????????# #??# """ | | ?????????????????????###### = #??# """ | | ??????????????????????????## [######??## | | ???????????????????????????# #????????## ## # | | ???????????????????????????# #?????????# #?### | | ?????????????????????????#?# % #?????????# #???? | | ?????????????????????####!## ##????????## ##??? | | ?????????????? a* % ;#????????## ### | | ?????????????????????###%###% ####??????# | | ???????????????????????#%### ##?????## | | ???????????????????????# ## ##?????### | | ?????????????????????###% #???????# ##### | | ????????????????????## a #??####?# #???? | | ???????????????????## aaaa ## #?## ### ##??? | | ???????????????????# a!@###?######?# #??? | | ???????????????????# a ##??????????# #??? | | ???????????????????# a #???????????# # #??? | | ???????????????????##% a #??????????## # #??? | | ????????????????????# #???????#### < ## #??? | | ???????????????????## a %##?????## ### #??? | | ??????????????????## #?????# ##?# #??? | | ?????????????????## ##????# ##??# #??? | | ?????????????????# ##???## # #???# #??? | | ?????????????????# [ #????#### ##??? #??? | | ?????????????????#####*%= #?????# #??? #??? | | ?????????????????????## ##????# #??? #??? | | ?????????????????????## #????# #??? #??? | | ????????????????????## #????# #??? ???? | | ???????????????????## #????# #??? ???? | | ?????????? ?????### ##????# #??? ???? | | ???????? # ##?????#######????????? | | ???????? #?????????????????????? | | ???????? ##?????????????????????? | | ???????? ######??????????????????????? | | ????????? ????????????????????????????? | | ????????? ## ????????????????????????????? | | ?????????????## ?????????????????????????????? | | ??????????????# ##???????????????????????????????? | | ??????????????#??????????????????????????????????? | +----------------------------------------------------+ Best States ------------- Heat Dissipation 28 Energy Generation 15 Energy Capacity 265 Matter Stores 300 Matter Capacity 300 Sight Range 16 Robot Scan Range 14 Terrain Scan Density 10 Evasion (%) 53 Targeting Accuracy 6 Defensive Hacking 10 Trap Extractor Capacity 6 Item Schematics ----------------- None Robot Schematics ------------------ None Fabricated ------------ Nothing Alien Tech Used ----------------- None Achievements -------------- None Challenges ------------ None Game ------ Seed ThermoelectricDynamicCoupler Manual? 0 Play Time 00:38:18 Cumulative 3.1 hours Start 2024.08.20 @ 08:24:29 End 2024.08.20 @ 09:07:55 Sessions 1 Manual Loads 0 Difficulty Rogue Special Mode None Game No. 4 Rogue 4 Adventurer 0 Explorer 0 Win Type - Total 0 Types 0/0/0/0/0/0/0/0/0 Lore% 2 Gallery% 6 Achievement% 12 Wizard Run 0 Options --------- Layout 1 ASCII 0 Keyboard 0 Movement Mouse Keybinds 0 Fullscreen 1 Font 24/Tamsyn Map View 50x35 Zoom Use 0% Tactical HUD 1 Map Filters NONE Filters NONE Steam 1 RUN: fe054d6a-c47a-463d-9dd9-c1c66e201c6e